bitfinex-derivatives/quotes_BTCF0:USTF0_20241218
["timestamp","ask_amount","ask_price","bid_price","bid_amount"]
[1734534810664,0.08524474,103900.0,103890.0,0.411939]
[1734534810864,0.08524474,103900.0,103890.0,0.3638]
[1734534811165,0.08524474,103900.0,103890.0,0.410939]
[1734534811465,0.08524474,103900.0,103890.0,0.411939]
[1734534812050,0.13337974,103900.0,103890.0,0.003]
[1734534812264,0.740509,103900.0,103890.0,0.003]
[1734534812564,0.6073366,103900.0,103890.0,0.003]
[1734534813059,0.1984016,103900.0,103890.0,0.051139]
[1734534813263,0.25467915,103900.0,103890.0,0.051139]
[1734534813655,0.25467915,103900.0,103890.0,0.003]
[1734534813855,0.66361415,103900.0,103890.0,0.003]
[1734534814256,0.47403307,103900.0,103890.0,0.003]
[1734534814452,0.11323307,103900.0,103890.0,0.411939]
[1734534814658,0.11323307,103900.0,103890.0,0.620139]
[1734534815055,0.11323307,103900.0,103890.0,0.829039]
[1734534815867,0.08534479,103900.0,103890.0,0.829039]
[1734534816958,0.08534479,103900.0,103890.0,0.620139]
[1734534817660,0.08534479,103900.0,103890.0,0.572]
[1734534817969,0.08534479,103900.0,103890.0,0.3638]
[1734534818265,0.49427979,103900.0,103890.0,0.003]
[1734534818464,0.70197979,103900.0,103890.0,0.003]
[1734534818665,0.81513665,103900.0,103890.0,0.003]
[1734534819063,0.76700165,103900.0,103890.0,0.003]
[1734534819865,0.68173307,103900.0,103890.0,0.003]
[1734534821071,0.84319469,103900.0,103890.0,0.002]
[1734534821367,1.24249469,103900.0,103890.0,0.002]
[1734534821766,1.10932229,103900.0,103890.0,0.002]
[1734534821961,1.27905759,103900.0,103890.0,0.002]
[1734534822172,0.31325759,103900.0,103890.0,0.1351724]
[1734534822674,0.31825759,103900.0,103890.0,0.4939724]
[1734534823059,0.12086731,103900.0,103890.0,0.4939724]
[1734534823262,0.12086731,103900.0,103890.0,0.1331724]
[1734534823461,0.12086731,103900.0,103890.0,0.4939724]
[1734534823662,0.11586731,103900.0,103890.0,0.4959724]
[1734534823859,0.08742169,103900.0,103890.0,0.4959724]
[1734534824061,0.08742169,103900.0,103890.0,0.3628]
[1734534824870,0.08542169,103900.0,103890.0,0.3638]
[1734534825564,0.08542169,103900.0,103890.0,0.3628]
[1734534825766,0.08542169,103900.0,103880.0,0.91709589]
[1734534825767,0.09242169,103900.0,103880.0,0.91709589]
[1734534825976,0.09242169,103900.0,103880.0,0.55629589]
[1734534826168,0.09242169,103900.0,103880.0,0.91709589]
[1734534826376,0.08742169,103900.0,103890.0,0.002]
[1734534826977,0.08742169,103900.0,103880.0,0.90409866]
[1734534827272,0.08742169,103900.0,103880.0,1.26489866]
[1734534827775,0.08542169,103900.0,103890.0,0.001]
[1734534828173,0.08542169,103900.0,103890.0,0.3618]
[1734534828376,0.08542169,103900.0,103890.0,0.3608]
[1734534828577,0.08742169,103900.0,103890.0,0.3608]
[1734534828967,0.00207621,103900.0,103880.0,1.26341866]
[1734534829169,0.00207621,103900.0,103880.0,1.26289866]
[1734534830070,7.621e-05,103900.0,103880.0,1.13172626]
[1734534831266,0.08539638,103930.0,103890.0,0.4939724]
[1734534831476,0.19802451,103960.0,103930.0,0.3608]
[1734534831687,0.19802451,103960.0,103950.0,0.3608]
[1734534831868,0.02288199,103960.0,103950.0,0.3608]
[1734534832081,0.22515243,103980.0,103950.0,0.6608]
[1734534832280,0.15627244,103980.0,103970.0,0.1331724]
[1734534832492,0.51707244,103980.0,103960.0,0.36088447]
[1734534832694,0.15627244,103980.0,103970.0,0.3608]
[1734534833091,0.00012218,103980.0,103970.0,0.3608]
[1734534833696,0.048102,103970.0,103960.0,8.447e-05]
[1734534833997,0.3608,103970.0,103960.0,8.447e-05]
[1734534834291,0.408902,103970.0,103960.0,8.447e-05]
[1734534834486,0.7434744,103970.0,103960.0,0.28678382]
[1734534834693,0.328107,103960.0,103950.0,0.36344202]
[1734534834898,0.8220794,103960.0,103950.0,0.36344202]
[1734534835087,1.1220794,103960.0,103950.0,0.36344202]
[1734534835393,1.1220794,103960.0,103930.0,0.45839044]
[1734534835394,0.048116,103940.0,103930.0,0.45839044]
[1734534835600,0.769716,103940.0,103930.0,0.22929933]
[1734534835985,1.049716,103940.0,103930.0,0.22929933]
[1734534836181,0.769716,103940.0,103930.0,0.22929933]
[1734534836382,0.5574,103950.0,103930.0,0.29684516]
[1734534836588,0.3608,103940.0,103930.0,0.29684516]
[1734534836799,0.3618,103940.0,103930.0,0.07654583]
[1734534837384,0.3678,103940.0,103930.0,0.06754583]
[1734534838296,0.3658,103940.0,103930.0,0.06854583]
[1734534838496,0.3658,103940.0,103930.0,0.001]
[1734534838900,0.3608,103940.0,103930.0,0.003]
[1734534839490,0.3628,103940.0,103930.0,0.001]
[1734534839791,0.3628,103940.0,103920.0,0.04823144]
[1734534840092,0.5420934,103930.0,103920.0,0.00010644]
[1734534840401,0.408921,103930.0,103920.0,0.00010644]
[1734534840596,0.3608,103930.0,103920.0,0.00010644]
[1734534840992,0.408921,103930.0,103920.0,0.00010644]
[1734534841699,0.3608,103930.0,103920.0,0.00010644]
[1734534842292,0.3608,103930.0,103920.0,0.00210644]
[1734534842498,0.408921,103930.0,103920.0,0.00210644]
[1734534842690,0.84217669,103930.0,103920.0,0.00210644]
[1734534842895,1.03117669,103930.0,103920.0,0.00210644]
[1734534843105,1.03117669,103930.0,103890.0,0.00144359]
[1734534843295,1.03117669,103930.0,103860.0,0.76189163]
[1734534843296,0.048147,103880.0,103860.0,0.63994463]
[1734534843601,0.408947,103880.0,103860.0,0.63994463]
[1734534843992,0.408947,103880.0,103870.0,0.048149]
[1734534843993,0.3608,103880.0,103870.0,0.048149]
[1734534844192,0.3608,103880.0,103870.0,0.04823618]
[1734534845198,0.3608,103880.0,103870.0,0.04923618]
[1734534845403,0.3618,103880.0,103870.0,0.04923618]
[1734534845893,0.3608,103880.0,103870.0,0.05523618]
[1734534846304,0.3608,103880.0,103870.0,0.00708718]
[1734534846491,0.3608,103880.0,103870.0,0.00308718]
[1734534846798,0.3608,103880.0,103870.0,0.00508718]
[1734534847097,0.769744,103880.0,103870.0,0.00508718]
[1734534847895,0.769744,103880.0,103870.0,0.00308718]
[1734534847896,0.7216,103880.0,103870.0,0.00308718]
[1734534851094,0.3608,103880.0,103870.0,0.05123618]
[1734534851296,0.3608,103900.0,103880.0,0.048144]
[1734534851492,0.3608,103900.0,103880.0,0.9428124]
[1734534851696,0.3608,103900.0,103890.0,0.048139]
[1734534851905,0.3608,103910.0,103890.0,0.048139]
[1734534852102,0.41037138,103920.0,103890.0,0.3736114]
[1734534852404,0.41037138,103920.0,103890.0,0.601239]
[1734534852596,0.008,103900.0,103890.0,0.601239]
[1734534853196,0.002,103900.0,103890.0,0.602239]
[1734534853398,0.37324438,103920.0,103890.0,0.602236]
[1734534853600,0.37324438,103920.0,103910.0,0.04813]
[1734534854197,0.00944438,103920.0,103910.0,0.04813]
[1734534854398,0.00944438,103920.0,103910.0,0.5421024]
[1734534854399,0.008,103920.0,103910.0,0.5421024]
[1734534854700,0.36088329,103930.0,103910.0,0.9192024]
[1734534854903,0.36088329,103930.0,103920.0,0.248925]
[1734534856198,0.36288329,103930.0,103920.0,0.248925]
[1734534857098,0.49605569,103930.0,103890.0,1.05962945]
[1734534857398,0.41100529,103930.0,103900.0,0.256731]
[1734534857803,0.41100529,103930.0,103900.0,0.3899034]
[1734534858204,0.408927,103920.0,103900.0,0.2086]
[1734534858394,0.40893,103910.0,103890.0,0.20910861]
[1734534858603,0.3608,103900.0,103890.0,0.01640861]
[1734534858903,0.3608,103900.0,103880.0,0.60149623]
[1734534859112,0.3608,103890.0,103880.0,0.55335323]
[1734534859409,0.408935,103900.0,103880.0,0.55335323]
[1734534860001,0.409935,103900.0,103880.0,0.56235323]
[1734534860196,0.3618,103900.0,103880.0,0.51904378]
[1734534860405,8.329e-05,103930.0,103920.0,0.048125]
[1734534860798,8.329e-05,103930.0,103920.0,0.1812974]
[1734534860999,0.3608,103940.0,103920.0,0.4939724]
[1734534861313,0.3608,103940.0,103930.0,0.048121]
[1734534861610,0.00144383,103960.0,103930.0,0.5420934]
[1734534861910,0.00144383,103960.0,103950.0,0.048112]
[1734534862107,0.00152633,103960.0,103950.0,0.04821502]
[1734534862411,8.25e-05,103960.0,103950.0,0.23901502]
[1734534862710,8.25e-05,103960.0,103950.0,0.73298742]
[1734534862913,0.0080825,103960.0,103950.0,0.73298742]
[1734534863709,0.0100825,103960.0,103950.0,0.73298742]
[1734534864004,0.0100825,103960.0,103950.0,0.80514797]
[1734534864211,0.0020825,103960.0,103950.0,0.80514797]
[1734534864409,0.0080825,103960.0,103950.0,0.80514797]
[1734534864604,0.0080825,103960.0,103950.0,0.44434797]
[1734534864809,0.3688825,103960.0,103950.0,0.19090302]
[1734534865305,0.3688825,103960.0,103950.0,0.44434797]
[1734534865700,0.3688825,103960.0,103950.0,0.23901502]
[1734534866410,0.3688825,103960.0,103950.0,0.19090302]
[1734534866816,0.4169895,103960.0,103950.0,0.00010302]
[1734534867312,0.6969895,103960.0,103950.0,0.00010302]
[1734534867811,0.4169895,103960.0,103950.0,0.00010302]
[1734534868501,0.3688825,103960.0,103950.0,0.00010302]
[1734534869610,0.3688825,103960.0,103950.0,0.04821502]
[1734534870413,0.0080825,103960.0,103950.0,0.61434797]
[1734534871005,0.0080825,103960.0,103950.0,0.25354797]
[1734534871415,0.0080825,103960.0,103950.0,0.61434797]
[1734534872515,0.0080825,103960.0,103950.0,0.25354797]
[1734534872809,0.0080825,103960.0,103950.0,0.00010302]
[1734534873110,0.0080825,103960.0,103950.0,0.04821502]
[1734534873414,0.0080825,103960.0,103950.0,0.25354797]
[1734534873712,0.0080825,103960.0,103950.0,0.05553638]
[1734534876314,0.0080825,103960.0,103950.0,0.26086933]
[1734534879124,0.0080825,103960.0,103950.0,0.62166933]
[1734534883718,0.3608,103990.0,103980.0,0.048098]
[1734534884413,0.1,104000.0,103980.0,0.61423095]
[1734534884622,0.07724688,104000.0,103990.0,0.80982595]
[1734534884819,0.00105312,104000.0,103990.0,0.80982595]
[1734534885218,0.00105312,104000.0,103990.0,0.604493]
[1734534885611,0.00905312,104000.0,103990.0,0.604493]
[1734534886015,0.00105312,104000.0,103990.0,0.604493]
[1734534886218,0.00905312,104000.0,103990.0,0.605493]
[1734534886413,0.01105312,104000.0,103990.0,0.605493]
[1734534886613,0.01105312,104000.0,103990.0,0.73861754]
[1734534887815,9.365e-05,104010.0,104000.0,0.048088]
[1734534888019,9.365e-05,104010.0,104000.0,0.54201254]
[1734534890025,9.365e-05,104010.0,104000.0,0.67513708]
[1734534890225,0.00038,104020.0,104000.0,0.67513708]
[1734534890521,0.00038,104020.0,104010.0,0.73330854]
[1734534891019,0.00038,104020.0,104010.0,0.93160854]
[1734534891919,0.00038,104020.0,104010.0,1.28680854]
[1734534892316,0.00012386,104030.0,104020.0,0.048079]
[1734534892518,0.00144273,104050.0,104040.0,0.04807]
[1734534892918,0.00144273,104050.0,104040.0,0.40887]
[1734534893120,0.00144273,104050.0,104040.0,0.54199454]
[1734534893521,0.00152645,104050.0,104040.0,0.54199454]
[1734534894114,0.11315978,104060.0,104040.0,0.49392454]
[1734534894318,0.11315978,104060.0,104050.0,0.048065]
[1734534894526,0.5662,104070.0,104050.0,0.048065]
[1734534894727,0.5662,104070.0,104050.0,0.18118954]
[1734534895130,0.00010804,104060.0,104050.0,0.18118954]
[1734534895723,0.00010804,104060.0,104050.0,0.37858954]
[1734534896139,0.00010804,104060.0,104050.0,0.7394718]
[1734534896331,0.00010804,104060.0,104050.0,1.0945518]
[1734534899532,0.01,104070.0,104060.0,0.048061]
[1734534899833,0.01,104070.0,104060.0,0.54198554]
[1734534900827,0.01,104070.0,104060.0,0.408861]
[1734534901033,0.01,104070.0,104060.0,0.048061]
[1734534901428,0.01,104070.0,104060.0,0.18118554]
[1734534901934,0.01,104070.0,104050.0,0.92075868]
[1734534902231,0.01,104070.0,104060.0,0.18118554]
[1734534902437,0.01,104070.0,104050.0,1.10194722]
[1734534902636,0.3708,104070.0,104050.0,0.00747868]
[1734534902835,0.905757,104070.0,104050.0,0.02695763]
[1734534903138,0.905757,104070.0,104050.0,0.01956121]
[1734534903139,0.2017,104060.0,104050.0,0.01956121]
[1734534903345,0.5625,104060.0,104050.0,0.01956121]
[1734534903635,0.2017,104060.0,104050.0,0.06762621]
[1734534904032,0.2017,104060.0,104050.0,0.048065]
[1734534904229,0.1969,104070.0,104050.0,0.13312454]
[1734534904430,0.1969,104070.0,104060.0,0.048061]
[1734534904636,0.01,104070.0,104060.0,0.54198554]
[1734534905144,0.01,104070.0,104060.0,0.74187196]
[1734534905646,8.797e-05,104080.0,104070.0,0.048056]
[1734534905940,8.797e-05,104080.0,104070.0,0.54198054]
[1734534907328,8.797e-05,104080.0,104070.0,0.18118054]
[1734534907736,0.00208797,104080.0,104070.0,0.18118054]
[1734534908831,0.00208797,104080.0,104070.0,0.54198054]
[1734534909837,0.00208797,104080.0,104070.0,0.18118054]
[1734534910232,0.00208797,104080.0,104060.0,0.96370742]
[1734534910233,0.00208797,104080.0,104060.0,1.04877096]
[1734534910438,0.36288797,104080.0,104060.0,1.14488696]
[1734534910635,0.00208797,104080.0,104060.0,1.09682796]
[1734534910943,0.00208797,104080.0,104070.0,0.048056]
[1734534911338,8.797e-05,104080.0,104070.0,0.048056]
[1734534912141,0.36088797,104080.0,104070.0,0.048056]
[1734534912740,8.797e-05,104080.0,104070.0,0.048056]
[1734534913656,8.797e-05,104080.0,104070.0,0.18118054]
[1734534915346,8.797e-05,104080.0,104070.0,0.54198054]
[1734534915539,0.11315978,104090.0,104080.0,0.048052]
[1734534915739,0.11315978,104090.0,104080.0,0.18117654]
[1734534915938,0.11315978,104090.0,104080.0,0.048052]
[1734534916446,0.11315978,104090.0,104080.0,0.54197654]
[1734534916841,0.11315978,104090.0,104080.0,0.73447654]
[1734534917035,6.94193887,104100.0,104090.0,0.048047]
[1734534917245,6.94193887,104100.0,104090.0,0.74377154]
[1734534917546,6.91089553,104100.0,104090.0,0.74377154]
[1734534918641,6.76981727,104100.0,104090.0,0.74377154]
[1734534918944,6.7432485,104100.0,104090.0,0.74377154]
[1734534920244,6.70709969,104100.0,104090.0,0.74377154]
[1734534920435,6.66229951,104100.0,104090.0,0.74377154]
[1734534920636,6.62240963,104100.0,104090.0,0.74377154]
[1734534921040,6.62240963,104100.0,104090.0,0.75199693]
[1734534921850,5.90776701,104100.0,104090.0,0.75199693]
[1734534922144,5.86396201,104100.0,104090.0,1.05199693]
[1734534922546,5.82677201,104100.0,104090.0,1.05199693]
[1734534922943,5.78393781,104100.0,104090.0,1.05199693]
[1734534923151,5.64403181,104100.0,104090.0,1.05199693]
[1734534923351,5.59791181,104100.0,104090.0,1.05199693]
[1734534923758,5.53338697,104100.0,104090.0,1.05199693]
[1734534924055,4.70497068,104100.0,104090.0,1.05299693]
[1734534924259,4.07302542,104100.0,104090.0,1.05299693]
[1734534924452,4.0453994,104100.0,104090.0,1.05299693]
[1734534924653,3.07188787,104100.0,104090.0,1.05310577]
[1734534924859,1.49642613,104100.0,104090.0,1.06526655]
[1734534925152,0.33079497,104100.0,104090.0,1.06526655]
[1734534925351,0.07701348,104100.0,104090.0,1.06526655]
[1734534925545,4.8e-07,104100.0,104090.0,1.05610577]
[1734534925746,0.14107826,104140.0,104130.0,0.048028]
[1734534925959,0.14107826,104140.0,104130.0,0.54195254]
[1734534926255,0.50187826,104150.0,104130.0,0.54195254]
[1734534926557,0.14107826,104150.0,104140.0,0.13312454]
[1734534926856,0.30164088,104160.0,104150.0,0.048019]
[1734534927156,0.27785908,104160.0,104150.0,0.73634354]
[1734534927345,0.16937862,104160.0,104150.0,0.73634354]
[1734534928045,0.15228949,104160.0,104150.0,0.73634354]
[1734534928560,9.097e-05,104160.0,104150.0,0.73634354]
[1734534929850,0.1854,104190.0,104170.0,0.048007]
[1734534930052,0.3732,104190.0,104170.0,0.18113154]
[1734534930252,0.3732,104190.0,104170.0,0.53585154]
[1734534930851,0.37327833,104190.0,104170.0,0.89665154]
[1734534931656,0.73407833,104190.0,104170.0,0.89665154]
[1734534932058,0.73407833,104190.0,104170.0,0.84864454]
[1734534932248,0.3608,104180.0,104170.0,0.35472]
[1734534932454,0.408805,104180.0,104150.0,0.73828253]
[1734534932658,0.3608,104170.0,104150.0,0.73828253]
[1734534932856,0.3608,104160.0,104150.0,0.00143999]
[1734534933271,0.5404,104160.0,104150.0,0.00143999]
[1734534933560,0.5404,104160.0,104140.0,0.04810327]
[1734534933757,0.5404,104160.0,104140.0,0.0562996]
[1734534933957,0.1796,104160.0,104150.0,0.048019]
[1734534934156,0.1796,104160.0,104140.0,0.0082766]
[1734534934358,0.5404,104160.0,104140.0,0.0562986]
[1734534935657,0.1945,104150.0,104140.0,0.0562986]
[1734534935857,0.195,104150.0,104140.0,0.0567986]
[1734534937158,0.98892454,104150.0,104120.0,0.3608]
[1734534937357,0.3608,104140.0,104120.0,0.04803]
[1734534937565,0.5553,104150.0,104140.0,0.048024]
[1734534937761,0.1945,104150.0,104140.0,0.18114854]
[1734534938267,0.1945,104150.0,104140.0,0.18126957]
[1734534938455,0.1945,104150.0,104140.0,0.04814503]
[1734534938867,0.1945,104150.0,104140.0,0.00012103]
[1734534939673,0.60332,104150.0,104130.0,0.018753]
[1734534939863,0.60332,104150.0,104130.0,0.066781]
[1734534940063,0.1887,104140.0,104130.0,0.066781]
[1734534940263,0.5495,104140.0,104130.0,0.018753]
[1734534940461,0.73064854,104140.0,104120.0,0.00827873]
[1734534940665,0.5454,104130.0,104120.0,8.709e-05]
[1734534940881,0.593428,104130.0,104120.0,8.709e-05]
[1734534941278,0.893428,104130.0,104120.0,8.709e-05]
[1734534941474,1.02664651,104130.0,104120.0,8.709e-05]
[1734534942972,0.048033,104120.0,104090.0,0.048046]
[1734534943283,0.048033,104120.0,104080.0,0.05626992]
[1734534943284,0.408843,104100.0,104080.0,0.05626992]
[1734534943467,0.3608,104100.0,104080.0,0.05626892]
[1734534943672,0.5532,104100.0,104090.0,0.048047]
[1734534943973,0.5532,104100.0,104090.0,0.04815463]
[1734534944887,0.5532,104100.0,104090.0,0.00010763]
[1734534945185,0.601242,104100.0,104090.0,0.00010763]
[1734534945478,0.048047,104090.0,104070.0,0.048055]
[1734534945679,0.408847,104090.0,104070.0,0.048055]
[1734534945878,0.408847,104090.0,104060.0,0.0014413]
[1734534945879,0.54197154,104090.0,104060.0,0.0014413]
[1734534946073,0.72187654,104080.0,104060.0,0.0495013]
[1734534946274,0.588752,104080.0,104060.0,0.0495013]
[1734534946477,0.5407,104080.0,104070.0,0.00011222]
[1734534946677,0.1799,104080.0,104070.0,0.04916822]
[1734534946876,0.5407,104080.0,104070.0,0.05316822]
[1734534947077,0.1799,104080.0,104070.0,0.00511222]
[1734534947271,0.54197254,104090.0,104070.0,0.00511222]
[1734534947272,0.3608,104090.0,104070.0,0.00511222]
[1734534947476,0.601243,104100.0,104090.0,0.048047]
[1734534947477,0.7331,104100.0,104090.0,0.048047]
[1734534947774,0.7331,104100.0,104080.0,0.18117454]
[1734534947973,0.7331,104100.0,104080.0,0.04805]
[1734534948381,0.7331,104100.0,104090.0,0.048047]
[1734534948585,0.7331,104100.0,104080.0,0.18117454]
[1734534948978,0.7331,104100.0,104080.0,0.04805]
[1734534949180,0.7391,104100.0,104080.0,0.04805]
[1734534949373,0.7391,104100.0,104080.0,0.53882184]
[1734534949772,0.7391,104100.0,104080.0,0.17802184]
[1734534950284,0.7331,104100.0,104080.0,0.17802184]
[1734534950680,0.1799,104100.0,104080.0,0.53882184]
[1734534950980,0.1844,104110.0,104100.0,0.048042]
[1734534951179,0.1844,104110.0,104090.0,0.49392454]
[1734534951484,0.048043,104100.0,104070.0,0.54209176]
[1734534951684,0.408843,104100.0,104070.0,0.550118]
[1734534952187,0.408848,104090.0,104070.0,0.00813846]
[1734534953688,0.048051,104080.0,104070.0,0.00813846]
[1734534953887,0.593151,104080.0,104070.0,0.00011222]
[1734534954184,0.5451,104080.0,104070.0,0.00111222]
[1734534954486,0.048047,104090.0,104070.0,0.18229276]
[1734534954684,0.048047,104090.0,104070.0,0.40996822]
[1734534955077,0.7941753,104100.0,104070.0,0.41396822]
[1734534955286,0.048047,104090.0,104070.0,0.41396822]
[1734534955874,0.048047,104090.0,104070.0,0.05316822]
[1734534956079,0.048047,104090.0,104070.0,0.40996822]
[1734534956280,0.7941763,104100.0,104080.0,0.048051]
[1734534956480,0.7461313,104100.0,104080.0,0.54197554]
[1734534956681,0.5532313,104100.0,104080.0,0.18117554]
[1734534956881,0.3689313,104100.0,104080.0,0.18117554]
[1734534957182,0.4169743,104100.0,104080.0,0.048051]
[1734534957889,0.4179743,104100.0,104070.0,0.72109176]
[1734534958288,0.3699313,104100.0,104080.0,0.18117354]
[1734534958491,0.3729313,104100.0,104080.0,0.54197354]
[1734534958889,0.0091313,104100.0,104080.0,0.18117354]
[1734534959086,0.0091313,104100.0,104090.0,0.18117154]
[1734534959290,0.0091313,104100.0,104090.0,0.72177154]
[1734534959593,0.0081313,104100.0,104090.0,0.31292454]
[1734534959788,0.408838,104110.0,104090.0,0.31292454]
[1734534960090,0.408842,104100.0,104090.0,0.1798]
[1734534960390,0.04805,104090.0,104070.0,0.00011222]
[1734534960594,0.40885,104090.0,104070.0,0.37089176]
[1734534960796,0.048043,104100.0,104080.0,0.13312454]
[1734534960991,0.3608,104110.0,104090.0,0.13312454]
[1734534961181,0.001,104110.0,104100.0,0.73156654]
[1734534962088,0.001,104110.0,104100.0,0.1896]
[1734534962292,0.004,104110.0,104100.0,0.73156654]
[1734534962595,0.003,104110.0,104100.0,0.73156654]
[1734534963489,0.001,104110.0,104100.0,0.73156654]
[1734534963689,9.397e-05,104130.0,104120.0,0.048033]
[1734534963895,9.397e-05,104130.0,104120.0,0.54195754]
[1734534964583,9.397e-05,104130.0,104110.0,0.794137]
[1734534964885,0.04812297,104130.0,104110.0,0.3608]
[1734534965095,0.49392454,104120.0,104100.0,0.19765587]
[1734534965282,0.408838,104110.0,104100.0,0.1896]
[1734534966188,0.408838,104110.0,104100.0,0.001]
[1734534966794,0.048034,104120.0,104100.0,0.1961]
[1734534966981,0.048034,104120.0,104100.0,0.243142]
[1734534967505,0.44565704,104130.0,104110.0,0.18116054]
[1734534967719,0.49368604,104130.0,104110.0,0.01]
[1734534968318,0.49368604,104130.0,104110.0,0.058038]
[1734534968523,0.40892297,104130.0,104110.0,0.058038]
[1734534968823,0.40892297,104130.0,104110.0,0.059038]
[1734534969401,9.397e-05,104130.0,104110.0,0.059038]
[1734534969611,9.397e-05,104130.0,104110.0,0.55296254]
[1734534969913,9.397e-05,104130.0,104110.0,0.19216254]
[1734534970297,9.397e-05,104130.0,104110.0,0.14412454]
[1734534970502,0.04812397,104130.0,104110.0,0.3718]
[1734534970817,0.40892397,104130.0,104110.0,0.011]
[1734534971008,0.36089397,104130.0,104110.0,0.19216054]
[1734534971212,0.36089397,104130.0,104110.0,0.419836]
[1734534971505,9.397e-05,104130.0,104110.0,0.3718]
[1734534971704,0.048033,104120.0,104110.0,0.011]
[1734534972212,0.408833,104120.0,104110.0,0.011]
[1734534972418,0.600433,104120.0,104110.0,0.011]
[1734534972711,0.73355754,104120.0,104110.0,0.01]
[1734534972908,0.600433,104120.0,104110.0,0.028]
[1734534974013,0.239633,104120.0,104110.0,0.028]
[1734534974201,0.600433,104120.0,104110.0,0.028]
[1734534974499,0.600433,104120.0,104110.0,0.02]
[1734534974695,0.600433,104120.0,104110.0,0.011]
[1734534974891,0.67458804,104130.0,104110.0,0.058038]
[1734534975091,0.67458804,104130.0,104110.0,0.248838]
[1734534975291,0.31378804,104130.0,104110.0,0.248838]
[1734534975590,0.08485704,104130.0,104120.0,0.048033]
[1734534975792,0.18092004,104130.0,104110.0,0.249836]
[1734534976089,0.13288704,104130.0,104110.0,0.249836]
[1734534976408,0.62681158,104130.0,104110.0,0.2018]
[1734534976700,0.048033,104120.0,104110.0,0.2008]
[1734534976898,0.40892497,104130.0,104110.0,0.248837]
[1734534977099,0.048033,104120.0,104110.0,0.2008]
[1734534977500,0.40892497,104130.0,104110.0,0.248837]
[1734534977998,0.048033,104120.0,104110.0,0.2008]
[1734534978195,0.048033,104120.0,104110.0,0.2018]
[1734534978989,0.048033,104120.0,104110.0,0.1998]
[1734534979294,0.048033,104120.0,104110.0,0.2038]
[1734534979795,0.40892297,104130.0,104110.0,0.252838]
[1734534980000,0.40892297,104130.0,104110.0,0.252835]
[1734534980295,0.36089397,104130.0,104120.0,0.048033]
[1734534981200,0.40892297,104130.0,104110.0,0.799137]
[1734534981786,0.36089397,104130.0,104110.0,0.799137]
[1734534982189,0.36089397,104130.0,104120.0,0.049033]
[1734534982805,9.397e-05,104130.0,104120.0,0.408833]
[1734534984996,9.397e-05,104130.0,104120.0,0.409833]
[1734534985497,9.397e-05,104130.0,104120.0,0.3618]
[1734534985895,9.397e-05,104130.0,104120.0,0.001]
[1734534985896,0.40892197,104130.0,104120.0,0.001]
[1734534986496,0.04812197,104130.0,104120.0,0.001]
[1734534986897,9.397e-05,104130.0,104120.0,0.049033]
[1734534988102,0.04812197,104130.0,104120.0,0.001]
[1734534988603,0.40892197,104130.0,104120.0,0.001]
[1734534989105,0.79745216,104130.0,104120.0,0.001]
[1734534990002,0.92654378,104130.0,104120.0,0.001]
[1734534990902,0.49368504,104130.0,104120.0,0.001]
[1734534991403,0.60753065,104130.0,104120.0,0.001]
[1734534992207,0.048033,104120.0,104110.0,0.01]
[1734534992396,0.91349174,104120.0,104110.0,0.29721751]
[1734534992592,0.1945,104120.0,104110.0,0.34525551]
[1734534992797,0.60753365,104130.0,104120.0,0.048033]
[1734534993098,0.24673365,104130.0,104120.0,0.048033]
[1734534993507,0.49368804,104130.0,104120.0,0.048033]
[1734534994000,0.49368804,104130.0,104120.0,0.222433]
[1734534994496,0.40892497,104130.0,104120.0,0.1744]
[1734534995604,0.40892497,104130.0,104120.0,0.1754]
[1734534996005,9.397e-05,104130.0,104120.0,0.223433]
[1734534996200,9.397e-05,104130.0,104120.0,0.767433]
[1734534996803,9.397e-05,104130.0,104120.0,1.1092816]
[1734534998213,9.397e-05,104130.0,104120.0,0.767433]
[1734534998515,9.397e-05,104130.0,104120.0,0.90029174]
[1734534998710,9.397e-05,104130.0,104120.0,0.767433]
[1734535000811,9.397e-05,104130.0,104120.0,1.11216881]
[1734535001315,9.397e-05,104130.0,104120.0,1.55787226]
[1734535001505,0.08476307,104150.0,104140.0,0.18088274]
[1734535001710,0.04583945,104150.0,104140.0,0.90248274]
[1734535001906,0.0005,104160.0,104140.0,0.90248274]
[1734535002114,0.0005,104160.0,104150.0,0.600019]
[1734535002418,0.0005731,104160.0,104150.0,0.600019]
[1734535002809,0.0005731,104160.0,104150.0,0.552]
[1734535003607,0.0005731,104160.0,104150.0,0.600019]
[1734535003811,0.0005731,104160.0,104150.0,0.552]
[1734535004007,0.0005731,104160.0,104150.0,0.1912]
[1734535004208,0.0035731,104160.0,104150.0,0.1912]
[1734535004609,0.84524684,104160.0,104140.0,0.34450471]
[1734535004912,0.586419,104150.0,104140.0,0.34450471]
[1734535005115,0.586419,104150.0,104130.0,0.70530471]
[1734535005310,0.586419,104150.0,104130.0,0.75333171]
[1734535005711,0.5384,104150.0,104130.0,0.75333171]
[1734535006516,0.048024,104140.0,104130.0,0.3608]
[1734535007105,0.3608,104150.0,104130.0,0.54168474]
[1734535007512,0.40882,104150.0,104130.0,0.408826]
[1734535007911,0.40882,104150.0,104130.0,0.409826]
[1734535008317,0.40882,104150.0,104130.0,0.75433071]
[1734535009113,0.3608,104150.0,104140.0,0.048024]
[1734535009323,0.0005731,104160.0,104150.0,0.048019]
[1734535009514,0.0005731,104160.0,104150.0,0.36157774]
[1734535009714,0.0005731,104160.0,104150.0,0.54357774]
[1734535010123,0.0005731,104160.0,104150.0,0.90437774]
[1734535010809,0.0005731,104160.0,104150.0,0.3627]
[1734535011015,0.0005731,104160.0,104150.0,0.7235]
[1734535011426,0.0005731,104160.0,104150.0,0.90437774]
[1734535012147,0.0035731,104160.0,104150.0,0.90437774]
[1734535013216,0.0005731,104160.0,104150.0,0.90837774]
[1734535014119,0.0005731,104160.0,104150.0,0.92238663]
[1734535014320,0.0005731,104160.0,104150.0,1.26689134]
[1734535015122,0.0005731,104160.0,104150.0,0.92238663]
[1734535015913,0.0005731,104160.0,104150.0,0.78952789]
[1734535016118,0.0005731,104160.0,104150.0,0.87798122]
[1734535017528,0.0005731,104160.0,104150.0,0.96643455]
[1734535017924,0.36224073,104180.0,104150.0,1.02361433]
[1734535018121,0.36224073,104180.0,104170.0,0.13646333]
[1734535018324,0.74552747,104190.0,104170.0,0.13646333]
[1734535018626,0.38472747,104190.0,104180.0,0.08845333]
[1734535018822,0.11,104200.0,104180.0,0.49725833]
[1734535019017,0.11007604,104200.0,104190.0,0.08857806]